bitfinex/quotes_ETHUSD_20241105
["timestamp","ask_amount","ask_price","bid_price","bid_amount"]
[1730829034532,1.3332,2457.1,2456.9,0.06974155]
[1730829037519,0.55,2457.0,2456.9,0.069757]
[1730829039946,0.08134078,2457.2,2456.9,4.139797]
[1730829040119,0.08134078,2457.2,2457.0,4.06998]
[1730829040440,0.55,2457.2,2457.1,0.06957085]
[1730829041306,0.55,2457.2,2456.9,4.07013]
[1730829041541,0.55,2457.2,2457.1,0.06957085]
[1730829041746,0.55,2457.2,2457.0,0.06970834]
[1730829042045,0.55,2457.2,2457.1,0.06957085]
[1730829042253,0.55,2457.2,2456.9,4.07013]
[1730829042412,0.55,2457.2,2457.1,0.06957085]
[1730829042609,0.55,2457.2,2456.9,4.07013]
[1730829042803,0.55,2457.2,2457.1,0.06957085]
[1730829043004,0.55,2457.2,2456.8,4.82347]
[1730829043005,0.55,2457.2,2456.8,4.82352]
[1730829043210,0.55,2457.2,2457.1,0.06957085]
[1730829043549,0.55,2457.2,2456.8,4.82352]
[1730829043745,0.55,2457.2,2457.1,0.06957085]
[1730829044348,0.55,2457.3,2456.9,4.07015]
[1730829044652,0.55,2457.3,2457.0,0.06970834]
[1730829045315,0.08134078,2457.2,2457.0,0.06970834]
[1730829046625,4.15102078,2457.2,2456.8,4.82344]
[1730829046805,4.70102078,2457.2,2457.1,0.06957085]
[1730829047008,1.67701054,2457.2,2456.8,8.89368]
[1730829047255,0.63134078,2457.2,2457.1,0.06957085]
[1730829047546,0.63134078,2457.2,2456.8,4.82344]
[1730829047856,0.63134078,2457.2,2456.8,4.07024]
[1730829047857,4.70101078,2457.2,2456.8,4.07024]
[1730829048022,4.07,2457.0,2456.9,0.06984585]
[1730829048228,5.82259454,2457.0,2456.6,4.07054]
[1730829048535,5.82259454,2457.0,2456.9,0.06980721]
[1730829048724,5.82259454,2457.0,2456.6,4.07054]
[1730829048928,0.55,2456.9,2456.6,4.07054]
[1730829049122,0.55,2456.9,2456.7,0.07008224]
[1730829049323,4.70167078,2456.8,2456.7,0.07008224]
[1730829049628,0.55,2456.5,2456.4,1.0]
[1730829049864,1.42974078,2456.5,2456.4,1.0]
[1730829050046,5.50057078,2456.5,2456.4,1.0]
[1730829050251,1.42974078,2456.5,2456.4,1.0]
[1730829050554,2.14841954,2456.5,2456.4,1.0]
[1730829050713,2.06707876,2456.5,2456.4,1.0]
[1730829050912,1.3484,2456.5,2456.4,1.0]
[1730829051355,1.3484,2456.5,2456.4,1.0705683]
[1730829051520,1.3484,2456.5,2456.4,1.0]
[1730829051866,1.42974078,2456.5,2456.4,1.0705683]
[1730829052424,1.3484,2456.5,2456.4,1.0705683]
[1730829053709,0.55,2456.6,2456.4,1.0705683]
[1730829060093,4.62083,2456.5,2456.4,1.0705683]
[1730829060302,0.63134078,2456.5,2456.4,1.0705683]
[1730829061089,1.40204078,2456.5,2456.4,1.0705683]
[1730829062086,1.40204078,2456.5,2456.4,1.0]
[1730829062292,1.40204078,2456.5,2456.4,1.07104758]
[1730829062699,4.70185078,2456.7,2456.4,1.07104758]
[1730829062850,5.89487788,2456.7,2456.4,1.07104758]
[1730829063259,0.55,2456.5,2456.4,1.07104758]
[1730829063463,0.63134078,2456.5,2456.4,1.07104758]
[1730829065511,5.48897078,2456.5,2456.4,1.07104758]
[1730829066375,5.48897078,2456.5,2456.4,1.0]
[1730829066571,6.56423657,2456.5,2456.4,1.0]
[1730829066809,9.56423657,2456.5,2456.4,1.0]
[1730829067020,9.48289579,2456.5,2456.4,1.0]
[1730829067315,11.16922257,2456.5,2456.4,1.0]
[1730829068312,9.48289579,2456.5,2456.4,1.0]
[1730829068525,11.16922257,2456.5,2456.4,1.0]
[1730829069430,11.62031334,2456.5,2456.4,1e-05]
[1730829069728,5.41112,2455.9,2455.8,0.005]
[1730829070029,5.49246078,2455.9,2455.8,0.005]
[1730829070249,8.49246078,2455.9,2455.8,0.005]
[1730829070385,10.22552336,2455.9,2455.8,0.005]
[1730829072882,10.23552336,2455.9,2455.8,0.005]
[1730829073193,10.23552336,2455.9,2455.8,1e-05]
[1730829073194,17.36006303,2455.9,2455.8,1e-05]
[1730829074227,16.93203088,2455.9,2455.8,1e-05]
[1730829074425,0.01,2455.5,2455.4,0.005]
[1730829074597,12.3923342,2455.5,2455.4,0.005]
[1730829074796,13.95846084,2455.5,2455.4,0.005]
[1730829077210,0.8295,2455.3,2454.0,0.0618901]
[1730829077458,0.55,2454.3,2454.0,0.0618901]
[1730829077637,0.55,2454.1,2454.0,0.0618901]
[1730829078385,0.55,2454.2,2454.0,0.0618901]
[1730829078727,0.55,2454.2,2454.1,4.07481]
[1730829078935,0.55,2454.4,2454.1,4.07481]
[1730829079140,0.55,2454.2,2454.1,4.07481]
[1730829079796,4.85936,2455.1,2454.2,0.826]
[1730829080106,4.15470078,2455.0,2454.6,0.826]
[1730829080511,4.63268723,2455.0,2454.6,0.826]
[1730829080705,0.08134078,2455.0,2454.6,0.826]
[1730829081206,0.55,2454.9,2454.6,0.826]
[1730829081400,0.55,2454.7,2454.6,0.826]
[1730829081702,0.55,2454.9,2454.6,0.826]
[1730829081901,0.55,2454.7,2454.6,0.826]
[1730829082538,4.07218,2455.7,2455.0,4.07326]
[1730829082735,0.08134078,2455.6,2455.2,4.07288]
[1730829083037,0.08134078,2455.6,2455.2,4.07285]
[1730829083274,0.08134078,2455.6,2455.3,0.752]
[1730829083648,0.08134078,2455.7,2455.3,0.752]
[1730829083972,0.08134078,2455.7,2455.4,4.07255]
[1730829084360,0.08134078,2455.7,2455.3,0.752]
[1730829084558,0.08134078,2455.9,2455.3,0.752]
[1730829084778,0.08134078,2455.9,2455.7,4.07214]
[1730829084959,0.08134078,2456.1,2455.7,4.07214]
[1730829085131,0.08134078,2456.1,2455.3,0.752]
[1730829085132,4.15292078,2456.1,2455.3,0.752]
[1730829085331,4.15292078,2456.1,2455.5,4.07239]
[1730829085879,4.15292078,2456.1,2455.5,8.14479]
[1730829086048,4.15292078,2456.1,2455.5,4.07239]
[1730829086464,4.15292078,2456.1,2455.5,8.14479]
[1730829086754,0.55,2456.0,2455.5,4.07239]
[1730829086978,0.55,2455.8,2455.5,8.14479]
[1730829087850,0.63134078,2456.0,2455.5,8.14479]
[1730829088249,0.63134078,2456.0,2455.5,4.07239]
[1730829089493,0.63134078,2456.0,2455.2,4.07285]
[1730829089494,0.55,2455.6,2455.2,4.07285]
[1730829089654,0.55,2455.4,2455.2,8.14575]
[1730829089849,0.55,2455.4,2455.2,4.07285]
[1730829090058,0.55,2456.0,2455.7,4.07201]
[1730829090365,0.08134078,2455.9,2455.5,4.0724]
[1730829090560,4.15310078,2456.0,2455.4,8.95357]
[1730829090766,4.07185,2455.9,2455.4,4.88102]
[1730829090983,0.08134078,2455.8,2455.4,4.88102]
[1730829091288,4.07224,2455.7,2455.2,4.87566]
[1730829091487,0.63134078,2455.6,2455.2,4.87566]
[1730829093775,0.55,2455.4,2455.0,4.8395]
[1730829093981,0.63134078,2455.4,2455.0,8.91273]
[1730829094202,0.55,2455.4,2455.0,8.91272]
[1730829094832,0.55,2455.4,2455.1,4.07312]
[1730829096423,0.63134078,2455.6,2455.2,4.14632014]
[1730829096575,1.58740486,2455.6,2455.2,0.07343014]
[1730829096774,1.58740486,2455.6,2455.0,0.7663]
[1730829096775,0.55,2455.4,2455.0,4.83959]
[1730829096993,0.55,2455.2,2455.1,0.07356784]
[1730829097287,0.55,2455.3,2455.1,0.07356784]
[1730829097486,5.52932078,2455.2,2455.1,0.07356784]
[1730829097801,5.52932078,2455.2,2454.6,4.07398]
[1730829097802,4.62328,2455.1,2454.6,4.07398]
[1730829098005,0.55,2454.9,2454.6,4.07398]
[1730829098404,0.55,2454.9,2454.6,4.07396]
[1730829098590,0.08134078,2454.9,2454.6,4.07396]
[1730829098801,0.55,2454.9,2454.6,4.07396]
[1730829100824,0.55,2454.9,2454.5,4.66220342]
[1730829100985,0.63134078,2455.1,2454.7,4.0737]
[1730829101496,0.63134078,2455.1,2454.6,4.07398]
[1730829101727,4.70461078,2455.1,2454.6,4.07398]
[1730829101878,5.76089137,2455.1,2454.5,0.784]
[1730829102085,0.55,2454.8,2454.4,8.14843]
[1730829102280,0.63134078,2454.8,2454.4,4.07421]
[1730829103127,0.55,2454.6,2454.2,4.07451]
[1730829103431,0.55,2454.4,2454.2,4.07451]
[1730829104120,0.63134078,2454.6,2454.2,4.07451]
[1730829105013,0.63134078,2454.6,2454.3,4.07447]
[1730829105929,0.63134078,2454.6,2454.2,4.07451]
[1730829106423,4.70533078,2454.6,2454.1,3.7646]
[1730829106624,5.66462386,2454.6,2454.1,4.83941]
[1730829106797,1.59063386,2454.6,2454.2,4.07464]
[1730829107198,0.63134078,2454.7,2454.4,4.07428]
[1730829109507,0.63134078,2454.7,2454.4,4.07418]
[1730829109829,0.63134078,2454.7,2454.5,4.07413]
[1730829110024,4.07336,2455.0,2454.8,4.07351]
[1730829110025,0.08134078,2455.0,2454.8,4.07351]
[1730829110829,0.08134078,2455.0,2454.8,8.14707]
[1730829111337,0.08134078,2455.0,2454.9,0.07459032]
[1730829112027,0.63134078,2455.0,2454.9,0.07459032]
[1730829112745,0.55,2454.9,2454.8,4.07362]
[1730829113239,0.55,2455.0,2454.9,4.07348]
[1730829113545,0.55,2455.1,2454.9,4.07348]
[1730829113726,0.55,2455.1,2454.9,8.14688]
[1730829113902,0.55,2455.1,2454.9,4.0734]
[1730829114096,0.55,2455.1,2454.9,4.07339]
[1730829114295,0.55,2455.1,2454.8,4.07362]
[1730829114600,0.55,2454.9,2454.7,4.07371]
[1730829115612,0.63134078,2455.1,2454.7,4.07371]
[1730829117235,4.70449078,2455.1,2454.7,4.07371]
[1730829117396,5.58222386,2455.1,2454.5,8.93936]
[1730829117723,5.58222386,2455.1,2454.5,4.86532]
[1730829117927,5.58222386,2455.1,2454.6,4.07383]
[1730829118436,5.58222386,2455.1,2454.7,4.07379]
[1730829120251,1.50907386,2455.1,2454.7,4.07373]
[1730829120565,0.63134078,2455.1,2454.8,4.07361]
[1730829121187,1.68650752,2455.6,2454.5,0.7913]
[1730829121188,0.8284,2455.9,2455.0,0.8233]
[1730829121347,2.5282345,2456.4,2455.7,8.14407]
[1730829121348,0.7722,2456.1,2455.7,8.14407]
[1730829121533,0.7722,2456.1,2455.8,4.07184]
[1730829121724,0.7722,2456.1,2455.9,4.0718]
[1730829121968,2.11686208,2456.8,2455.9,4.0718]
[1730829121969,0.7722,2456.5,2455.9,4.0718]
[1730829122180,0.7722,2456.5,2456.1,4.07146]
[1730829122379,0.7722,2456.5,2456.2,4.07118]
[1730829122676,0.7722,2456.5,2456.1,8.14285]
[1730829122895,0.7722,2456.5,2456.2,4.07132]
[1730829123173,0.7722,2456.5,2456.1,4.07139]
[1730829123174,0.7722,2456.5,2456.3,4.07116]
[1730829123328,0.8143,2456.9,2456.4,4.07099]
[1730829123526,0.48844,2456.8,2456.4,4.07099]
[1730829123748,0.8143,2456.9,2456.3,4.07116]
[1730829123749,0.8143,2456.9,2456.5,4.07082]
[1730829124047,1.69650752,2457.4,2456.7,4.07047]
[1730829124048,0.751,2457.3,2456.7,4.07047]
[1730829124248,4.82052,2457.3,2456.7,4.07047]
[1730829124433,4.82052,2457.3,2456.7,8.14094]
[1730829124637,4.82052,2457.3,2456.7,4.07047]
[1730829124826,4.959665,2457.2,2456.7,4.07047]
[1730829125024,4.959665,2457.2,2456.5,4.07073]
[1730829125025,4.959665,2457.2,2456.5,4.07067]
[1730829125234,0.55,2457.1,2456.6,4.07055]
[1730829125756,0.889995,2457.2,2456.8,4.07028]
[1730829125956,0.751,2457.3,2456.8,4.07023]
[1730829126167,0.751,2457.3,2456.8,4.07022]
[1730829126369,0.751,2457.3,2456.9,0.07165596]
[1730829126591,4.06972,2457.2,2456.9,0.07165596]
[1730829126868,0.751,2457.3,2456.7,4.07038]
[1730829127170,0.55,2457.1,2456.7,4.07038]
[1730829127323,0.55,2457.1,2456.6,4.07056]
[1730829127324,0.55,2457.1,2456.8,0.07179348]
[1730829127700,0.55,2457.1,2456.6,4.07056]
[1730829127701,0.55,2457.1,2456.6,4.07055]
[1730829127863,0.55,2457.1,2456.9,0.07165596]
[1730829128030,0.55,2457.1,2456.6,4.07055]
[1730829128362,1.1759653,2457.1,2456.7,4.07037]
[1730829128534,1.1759653,2457.1,2456.8,0.07179348]
[1730829129575,5.45086,2456.9,2456.3,4.07113]
[1730829129872,1.3807,2456.9,2456.4,4.14332364]
[1730829130024,1.3807,2456.9,2456.4,4.14323364]
[1730829130630,5.45087,2456.9,2456.4,4.14323364]
[1730829130822,6.402957,2456.9,2456.4,4.14323364]
[1730829131029,6.402957,2456.9,2456.4,0.07234364]
[1730829131346,0.55,2456.7,2456.5,0.07071676]
[1730829131527,0.55,2456.8,2456.2,4.87862]
[1730829131723,0.55,2456.8,2456.4,4.07097]
[1730829132083,1.5973057,2456.8,2456.5,0.07082886]
[1730829132428,1.5973057,2456.8,2456.5,4.14163886]
[1730829132656,0.7685,2457.1,2456.6,4.07056]
[1730829132861,4.06976,2457.2,2456.7,4.87155]
[1730829133168,3.0,2457.3,2456.7,4.94210764]
[1730829133381,7.06951,2457.3,2456.7,4.94210764]
[1730829133531,4.06951,2457.3,2456.7,4.94210764]
[1730829133731,4.960418,2457.2,2456.7,0.07055764]
[1730829133990,4.61992,2457.1,2456.7,0.07055764]
[1730829134171,0.55,2457.1,2456.6,4.07054]
[1730829134476,0.55,2457.1,2456.7,0.07055764]
[1730829134979,0.55,2457.1,2456.7,4.14103764]
[1730829135598,0.55,2457.1,2456.8,4.07023]
[1730829135896,0.55,2457.1,2456.9,0.07028261]
[1730829136770,0.55,2457.1,2457.0,0.07014511]
[1730829136973,1.1010418,2457.1,2456.7,4.07049]
[1730829137183,0.55,2457.3,2456.8,4.14073012]
[1730829137383,4.61952,2457.3,2456.8,4.14073012]
[1730829138758,0.55,2457.3,2456.8,4.14062012]
[1730829139012,4.61952,2457.3,2456.8,4.14062012]
[1730829140105,0.55,2457.3,2456.8,8.21081012]
[1730829140313,4.83794,2457.4,2456.8,8.21081012]
[1730829140314,0.55,2457.5,2457.0,4.06999]
[1730829140512,4.85635,2457.7,2457.0,4.0699]
[1730829140666,4.85635,2457.7,2457.1,0.0698414]
[1730829141095,4.85635,2457.7,2457.2,4.06967]
[1730829141414,4.06903,2457.6,2457.3,0.06944663]
[1730829141706,0.485653,2457.5,2456.9,0.754]
[1730829141908,5.104823,2457.5,2457.4,0.06930917]
[1730829142202,0.55,2457.4,2457.0,4.06997]
[1730829142410,0.55,2457.4,2457.1,0.06972158]
[1730829142562,4.61935,2457.4,2457.1,0.06972158]
[1730829142790,5.5367533,2457.4,2456.9,4.82404]
[1730829142995,5.5367533,2457.4,2457.0,0.06982042]
[1730829146691,1.4674033,2457.4,2457.0,4.13980042]
[1730829147106,1.4674033,2457.4,2457.0,0.06982042]
[1730829147305,4.61983,2457.1,2457.0,0.06982042]
[1730829147596,0.55,2457.0,2456.6,4.87525]
[1730829147796,0.55,2457.0,2456.7,0.07009773]
[1730829148613,1.418952,2457.0,2456.7,0.07009773]
[1730829148817,0.7656,2456.9,2456.7,0.07009773]
[1730829149021,0.55,2456.8,2456.7,0.07009773]
[1730829149223,0.55,2456.8,2456.3,0.7992]
[1730829149410,0.55,2456.4,2456.0,0.7992]
[1730829149626,4.07058,2456.7,2456.0,0.7992]
[1730829149627,0.55,2456.6,2456.0,0.7992]
[1730829149835,0.55,2456.6,2456.2,4.0713]
[1730829150246,4.83584,2456.9,2456.2,4.0713]
[1730829150490,0.55,2456.8,2456.5,4.84772]
[1730829150634,4.720635,2457.5,2456.8,4.07032]
[1730829150835,0.8013,2457.4,2456.9,4.07007]
[1730829151133,4.87066,2457.4,2456.8,8.14052]
[1730829151880,4.87066,2457.4,2456.8,4.0702]
[1730829152062,5.0286395,2457.3,2456.6,4.07056]
[1730829152388,5.0286395,2457.3,2456.5,0.7769]
[1730829152389,5.0286395,2457.3,2456.7,4.07048]
[1730829152540,0.55,2457.2,2456.8,4.07024]
[1730829153634,0.55,2457.2,2456.7,4.07048]
[1730829154683,0.55,2457.2,2456.7,8.14088]
[1730829154899,0.55,2457.2,2456.7,4.0704]
[1730829155205,8.13656,2458.1,2457.2,4.06951]
[1730829155490,4.06852,2457.9,2457.4,4.06933]
[1730829155856,4.06852,2457.9,2457.2,4.06951]
[1730829155857,4.06761,2458.5,2457.8,4.06854]
[1730829156196,4.06796,2458.3,2457.9,0.06844043]
[1730829156350,1.581387,2458.5,2457.7,4.83463]
[1730829156351,4.06812,2458.2,2457.7,0.7658]
[1730829156547,4.06812,2458.2,2457.8,0.06857783]
[1730829157578,0.55,2458.1,2457.8,0.06857783]
[1730829158796,1.011812,2458.1,2457.8,0.06857783]
[1730829158966,0.55,2457.9,2457.4,4.87403]
[1730829159167,0.55,2457.9,2457.5,0.06862316]
[1730829159761,4.61863,2457.9,2457.5,0.06862316]
[1730829160059,0.55,2457.7,2457.2,4.06956]
[1730829160259,0.55,2457.7,2457.6,0.06851275]
[1730829160495,1.418748,2457.7,2457.2,4.06956]
[1730829160701,1.418748,2457.7,2457.6,0.06851275]
[1730829161297,1.418748,2457.7,2457.3,4.0695]
[1730829161481,0.55,2458.1,2457.6,0.06851275]
[1730829161682,0.55,2458.1,2457.6,8.13782]
[1730829161884,0.55,2458.3,2457.8,4.06867]
[1730829162086,0.539434,2458.2,2457.8,4.06867]
[1730829162260,8.91211,2458.4,2457.9,0.06820478]
[1730829162593,4.06786,2458.3,2457.9,0.06820478]
[1730829163456,0.55,2458.2,2457.9,0.06820478]
[1730829163651,0.55,2458.3,2457.9,0.87070478]
[1730829164100,0.7766,2458.4,2457.9,4.93919478]
[1730829164392,4.84202,2458.6,2458.0,4.06823]
[1730829164609,4.84172,2458.8,2458.1,4.21697332]
[1730829164792,4.84172,2458.8,2458.1,4.21685332]
[1730829165414,4.84172,2458.8,2458.2,4.06789]
[1730829165600,4.84172,2458.8,2458.3,0.06718412]
[1730829165895,0.55,2458.7,2458.1,4.06805]
[1730829166200,4.61727,2458.7,2458.1,4.06805]
[1730829166497,4.61727,2458.7,2458.2,0.06721724]
[1730829167900,0.55,2458.7,2458.2,0.06721724]
[1730829168096,0.55,2458.4,2458.2,0.06721724]
[1730829168282,0.55,2458.4,2458.0,4.06827]
[1730829168493,0.55,2458.4,2458.3,0.06700268]
[1730829168689,0.55,2458.4,2458.0,4.06827]
[1730829168890,0.55,2458.4,2458.3,0.06700268]
[1730829169094,0.55,2458.4,2458.0,4.06827]
[1730829169292,0.55,2458.6,2458.3,0.06700268]
[1730829169505,0.55,2458.6,2458.0,4.06827]
[1730829169506,5.563282,2458.6,2458.0,4.06827]
[1730829169809,4.61736,2458.6,2458.0,4.06827]
[1730829169971,0.55,2458.6,2458.1,4.13541741]
[1730829170800,0.55,2458.6,2458.2,4.0679]
[1730829171016,0.55,2458.6,2458.3,0.06705672]
[1730829171310,0.55,2458.6,2458.2,4.0679]
[1730829171509,0.55,2458.6,2458.4,0.06691938]
[1730829171715,0.55,2458.7,2458.4,0.06691938]
[1730829171882,0.55,2458.7,2458.4,4.06768]
[1730829172083,0.55,2458.7,2458.5,0.06678204]
[1730829172599,0.55,2458.7,2458.6,0.06664472]
[1730829172777,0.55,2458.7,2458.3,4.06781]
[1730829172980,0.0618901,2459.0,2458.6,0.06664472]
[1730829173191,0.0618901,2459.0,2458.6,4.06726]
[1730829173389,0.0618901,2459.0,2458.7,0.06650741]
[1730829174421,0.55,2458.9,2458.7,0.06650741]
[1730829175483,0.55,2458.9,2458.7,4.13367741]
[1730829175678,0.55,2458.9,2458.7,4.06717]
[1730829175886,0.55,2458.9,2458.8,0.06607291]
[1730829176631,0.55,2458.9,2458.8,4.13309291]
[1730829176836,0.0618901,2459.0,2458.8,4.13309291]
[1730829177591,0.0618901,2459.0,2458.9,4.06685]
[1730829177788,0.0618901,2459.0,2458.9,0.06593562]
[1730829178225,0.0618901,2459.0,2458.7,4.06717]
[1730829178410,0.0618901,2459.0,2458.8,0.06607291]
[1730829178621,0.0618901,2459.0,2458.6,3.7709]
[1730829178932,0.6118901,2459.0,2458.9,0.06593562]
[1730829179405,0.6118901,2459.0,2458.6,4.83825]
[1730829179611,0.6118901,2459.0,2458.7,0.06621021]
[1730829180495,4.61696,2458.9,2458.7,0.06621021]
[1730829180894,4.61696,2458.9,2458.4,4.06768]
[1730829181190,4.61696,2458.9,2458.3,7.8736]
[1730829181438,4.61696,2458.9,2458.5,0.06623015]
[1730829181633,4.61696,2458.9,2458.3,11.94135]
[1730829181845,4.61696,2458.9,2458.6,0.06609282]
[1730829182135,4.6172,2458.7,2458.3,0.8058]
[1730829182317,0.55,2458.5,2458.1,4.86907]
[1730829182638,4.6176,2458.5,2458.1,0.8009]
[1730829182852,0.55,2458.7,2458.1,4.95027415]
[1730829183131,0.7958,2458.8,2458.4,4.06768]
[1730829184400,0.55,2458.9,2458.6,4.0672]
[1730829184705,0.0618901,2459.0,2458.5,0.08134283]
[1730829184706,0.0618901,2459.0,2458.8,4.06702]
[1730829184904,0.0618901,2459.0,2458.8,4.82062]
[1730829185152,0.0618901,2459.0,2458.9,4.06685]
[1730829185439,0.0618901,2459.0,2458.8,4.82062]
[1730829185791,0.0618901,2459.0,2458.8,0.7536]
[1730829186214,0.0618901,2459.0,2458.9,0.06571565]
[1730829187742,4.1285801,2459.0,2458.6,0.7954]
[1730829187946,4.1285801,2459.0,2458.9,0.06555745]
[1730829188136,0.0618901,2459.0,2458.6,4.86262]
[1730829188446,0.0618901,2459.0,2458.6,0.7954]
[1730829188447,0.6118901,2459.0,2458.6,0.7954]
[1730829188647,4.6786101,2459.0,2458.7,0.06573173]
[1730829188848,4.6786101,2459.0,2458.5,3.0]
[1730829189055,4.6786101,2459.0,2458.6,0.06586904]
[1730829189519,0.6118901,2459.0,2458.6,4.13319904]
[1730829191323,0.6118901,2459.0,2458.6,8.20052904]
[1730829191763,0.6118901,2459.0,2458.7,4.06705]
[1730829191913,0.6118901,2459.0,2458.7,4.14838444]
[1730829192273,0.6118901,2459.0,2458.8,0.06558672]
[1730829193678,0.0618901,2459.0,2458.8,0.83868672]
[1730829193955,0.0618901,2459.0,2458.8,8.97250672]
[1730829194251,0.0618901,2459.0,2458.8,4.90559672]
[1730829196326,0.0618901,2459.0,2458.8,0.83868672]
[1730829197333,0.0618901,2459.0,2458.8,0.06558672]
[1730829197540,5.44215,2458.9,2458.8,0.06558672]
[1730829197722,5.99255401,2458.9,2458.8,0.06558672]
[1730829197923,0.55,2458.7,2458.3,0.7773]
[1730829198364,4.61728,2458.7,2458.2,4.0679]
[1730829198722,4.61728,2458.7,2458.2,4.14924993]
[1730829199185,0.55,2458.7,2458.3,4.06781]
[1730829199341,0.55,2458.7,2458.2,4.0679]
[1730829199658,0.55,2458.7,2458.2,8.21717991]
[1730829199867,0.55,2458.7,2458.2,8.13583]
[1730829200023,4.6172,2458.7,2458.2,4.0679]
[1730829200219,4.6172,2458.7,2458.2,4.14924991]
[1730829201052,4.6172,2458.7,2458.2,4.0679]
[1730829201344,4.6172,2458.7,2458.3,0.06639293]
[1730829201757,4.6172,2458.7,2458.2,4.0679]
[1730829201758,4.6172,2458.7,2458.2,4.1492499]
[1730829201960,4.6172,2458.7,2458.4,0.06625559]
[1730829202160,4.6172,2458.7,2458.3,0.06639293]
[1730829202475,4.6172,2458.7,2458.4,0.06625559]
[1730829202785,4.6172,2458.7,2458.2,4.0679]
[1730829203307,4.6172,2458.7,2458.3,0.06641608]
[1730829203667,4.6172,2458.7,2458.2,4.0679]
[1730829203877,4.6172,2458.7,2458.4,0.06627874]
[1730829204184,0.55,2458.7,2458.5,0.06614141]
[1730829204386,0.55,2458.7,2458.3,4.0678]
[1730829204593,4.61721,2458.7,2458.2,4.0679]
[1730829204792,4.61721,2458.7,2458.3,0.06641608]
[1730829204996,4.61721,2458.7,2458.2,4.14924988]
[1730829205289,4.61721,2458.7,2458.3,0.06641608]
[1730829205480,4.61721,2458.7,2458.2,4.14924988]
[1730829205796,0.55,2458.7,2458.3,0.06641608]
[1730829206007,0.55,2458.7,2458.2,4.06789]
[1730829206162,0.55,2458.7,2458.2,4.14923989]
[1730829206365,0.55,2458.7,2458.3,0.06641608]
[1730829206610,0.55,2458.7,2458.2,4.14923989]
[1730829206814,0.55,2458.7,2458.4,0.06627874]
[1730829207107,0.55,2458.7,2458.2,8.21713989]
[1730829207308,0.55,2458.7,2458.5,0.06614141]
[1730829207487,0.55,2458.5,2458.1,3.8094]
[1730829207694,5.42013,2458.5,2458.1,3.0]
[1730829209300,1.3525,2458.5,2458.1,3.0]
[1730829209503,1.3525,2458.5,2458.1,7.06816]
[1730829209707,1.3525,2458.5,2458.2,0.08135124]
[1730829209930,1.3525,2458.5,2458.2,4.14932124]
[1730829210083,1.3525,2458.5,2458.2,4.06797]
[1730829210496,1.3525,2458.5,2458.2,4.14932019]
[1730829210704,1.3525,2458.5,2458.2,4.06797]
[1730829211582,1.3525,2458.5,2458.1,7.06816]
[1730829211785,1.3525,2458.5,2458.1,7.06809]
[1730829211990,1.3525,2458.5,2458.2,0.08135019]
[1730829212190,1.3525,2458.5,2458.2,4.14934019]
[1730829212619,0.55,2458.6,2458.2,4.14934019]
[1730829215323,0.55,2458.6,2458.3,4.06773]
[1730829215537,2.50522006,2458.9,2458.5,4.06752]
[1730829215821,0.0618901,2459.0,2458.8,4.06693]
[1730829216027,0.0618901,2459.0,2458.8,7.94513342]
[1730829216176,0.0618901,2459.0,2458.9,4.21395237]
[1730829216382,0.0618901,2459.0,2458.9,4.13261966]
[1730829216785,0.0618901,2459.0,2458.9,4.21394649]
[1730829218296,0.0618901,2459.0,2458.9,4.13261966]
[1730829219820,0.0618901,2459.0,2458.9,7.13261966]
[1730829221203,0.0618901,2459.0,2458.9,0.06576966]
[1730829222297,0.0618901,2459.0,2458.9,4.95411966]
[1730829224243,0.0618901,2459.0,2458.9,5.03544362]
[1730829224444,0.0618901,2459.0,2458.9,4.95411966]
[1730829225438,0.0618901,2459.0,2458.9,0.06576966]
[1730829226262,0.0618901,2459.0,2458.9,4.13261966]
[1730829226592,0.0618901,2459.0,2458.9,0.06576966]
[1730829227112,1.4364901,2459.0,2458.9,0.06576966]
[1730829227261,5.5031801,2459.0,2458.9,0.06576966]
[1730829227598,0.55,2458.9,2458.6,0.08133817]
[1730829227794,0.55,2458.9,2458.6,4.14867817]
[1730829227983,0.55,2458.9,2458.6,8.21594817]
[1730829228188,0.55,2458.9,2458.7,4.06713]
[1730829228589,0.8864901,2459.0,2458.8,0.08133886]
[1730829228590,0.0618901,2459.0,2458.8,0.08133886]
[1730829228762,0.0618901,2459.0,2458.9,4.06685]
[1730829231507,0.0618901,2459.0,2458.9,4.132284]
[1730829233086,0.0618901,2459.0,2458.9,0.065434]
[1730829235030,0.0618901,2459.0,2458.7,4.06717]
[1730829235393,0.0618901,2459.0,2458.8,0.06562146]
[1730829235923,0.8172901,2459.0,2458.8,0.06562146]
[1730829236287,0.55,2458.9,2458.8,0.06562146]
[1730829237883,0.55,2458.9,2458.7,4.06717]
[1730829238123,0.55,2458.9,2458.8,0.06562532]
[1730829238498,0.55,2458.9,2458.6,4.06725]
[1730829238701,0.55,2458.9,2458.7,0.06576262]
[1730829241133,0.8172901,2459.0,2458.7,0.06576262]
[1730829241134,0.0618901,2459.0,2458.8,4.06702]
[1730829241639,0.0618901,2459.0,2458.9,0.06550732]
[1730829242521,0.0618901,2459.0,2458.9,4.21368678]
[1730829244944,0.6118901,2459.0,2458.9,0.06550732]
[1730829245155,5.98685111,2459.0,2458.9,0.06550732]
[1730829245317,4.61695,2458.9,2458.3,4.88523]
[1730829245530,4.06703,2458.8,2458.3,4.88523]
[1730829246148,4.85485,2458.6,2458.1,4.06813]
[1730829246301,0.55,2458.5,2458.4,0.06623245]
[1730829246647,0.7875,2458.6,2458.1,0.08135016]
[1730829246829,0.7875,2458.6,2458.4,0.06635592]
[1730829247201,0.7875,2458.6,2458.5,0.06621858]
[1730829247406,1.3375,2458.6,2458.5,0.06621858]
[1730829247605,1.3375,2458.6,2458.2,4.06791]